{"text_format":"1","workbook":"xlsx","n_sheets":3,"sheets":["Instrucciones","Reformulación Presupuesto Bb","Resumen Presupuesto"],"not_rendered":{"charts":0,"images":1,"macros":1,"external_links":0,"defined_names":7,"comments":1,"pivot_tables":0},"unopened":[],"bounds":{"document_bytes":16777216,"sheet_cells":100000,"rows_first":2000,"rows_last":500,"rows_between":2000,"halvings":0,"cell_chars":16384,"cell_head_chars":4096},"cells_cut":0,"cells_raw":0,"read":"whole","date_system":"1900"}

{"sheet":"Instrucciones","index":0,"n_rows":18,"n_cols":10,"rows_kept":18,"cut":false,"hidden":false,"merged":[[16,1,16,17],[1,9,1,11],[2,2,3,17],[4,2,4,17],[6,2,6,17],[8,1,8,17],[9,1,9,17],[10,1,10,17],[12,1,12,17],[14,1,14,17]]}
[]
[null,null,null,null,null,null,null,null,null,"Doc_basico3_presup_reformulado_Bb INSTRUCCIONES"]
[null,null,"SUBVENCIONES DEL AYUNTAMIENTO DE BARCELONA PARA EL FORTALECIMIENTO DE LA ECONOMÍA SOCIAL Y SOLIDARIA Y POR LA INTERCOOPERACIÓN EN LA ESTRATEGIA #ESSBCN2030 - FORTALECEMOS LA ESS 2025"]
[]
[null,null,"Aspectos relevantes relacionados con la reformulación"]
[]
[null,null,"INSTRUCCIONES"]
[]
[null,"1. Cumplimentar sólo las celdas en blanco de la pestaña \"Reformulación Presupuesto\" con los datos económicos del proyecto:"]
[null,"1.1 Cumplimentar los cuadros DATOS BÁSICOS-PREVISIÓN DE GASTOS DEL PROYECTO SUBVENCIONABLE INICIAL, con los datos económicos de la propuesta inicial con subvención otorgada."]
[null,"1.2 Cumplimentar los cuadros DATOS BÁSICOS-PREVISIÓN DE GASTOS DEL PROYECTO REFORMULADO, con los datos económicos de la propuesta de reformulación."]
[]
[null,"2. Revisar y rellenar sólo las celdas en blanco de la pestaña \"Resumen Presupuesto\" con los datos económicos del proyecto."]
[]
[null,"3. Imprimir las hojas de las 2 pestañas (Reformulación presupuesto y Resumen Presupuesto). En formato pdf."]
[]
[null,"4. Si la solicitud se presentó por vía telemática, es necesario registrar la documentación telemáticamente dentro de la convocatoria específica como anexión de documentos adicionales y utilizar el número de trámite que el sistema de registro proporciona en el momento de la presentación de la solicitud de la subvención."]
[null,"Enlace para realizar el trámite."]

{"sheet":"Reformulación Presupuesto Bb","index":1,"n_rows":174,"n_cols":15,"rows_kept":174,"cut":false,"hidden":false,"merged":[[169,0,169,14],[170,0,170,14],[171,0,171,14],[173,0,173,14],[147,0,147,14],[148,0,148,14],[149,0,149,14],[150,0,150,14],[151,0,151,14],[152,0,152,14],[153,0,153,14],[154,0,154,14],[155,0,155,14],[156,0,156,14],[157,0,157,14],[158,0,158,14],[166,0,166,14],[167,0,167,14],[168,0,168,14],[159,0,159,14],[160,0,160,14],[161,0,161,14],[162,0,162,14],[163,0,163,14],[164,0,164,14],[165,0,165,14],[1,1,1,10],[3,0,3,14],[6,1,6,9],[7,1,7,9],[8,1,8,9],[4,0,4,14],[11,10,11,12],[14,10,14,12],[172,0,172,14],[10,0,10,3],[10,6,10,9],[12,7,12,9],[13,7,13,9],[11,1,11,3],[12,1,12,3],[13,1,13,3],[11,7,11,9],[16,12,16,14],[14,1,14,3],[16,0,16,4],[14,7,14,9],[16,6,16,10]]}
[]
[null,"Reformulación presupuesto Modalidad Bb"]
[]
["Programa de subvenciones del Ayuntamiento de Barcelona para el fortalecimiento de la Economía Social y Solidaria y por la intercooperación en la Estrategia #ESSBCN2030 - FORTALECEMOS LA ESS 2025"]
["CUMPLIMENTAR SÓLO LAS CELDAS EN BLANCO"]
[]
["Nombre de la persona jurídica"]
["NIF de la persona jurídica"]
["Nombre del proyecto subvencionable"]
[]
["DATOS BÁSICOS DEL PROYECTO INICIAL SOLICITADO\n(indicar los datos solicitados en la propuesta inicial)",null,null,null,null,null,"DATOS BÁSICOS PROYECTO REFORMULADO"]
["Importe total del proyecto subvencionable",null,null,null,null,null,"Importe total del proyecto REFORMULADO",null,null,null,{"$f":"IF(H12<B12*0.7,\"No se puede reformular más de un 30%.\",\"\")","v":""}]
["Importe imputable a la subvención municipal",null,null,null,null,null,"Importe imputable a la subvención OTORGADA\n(indicar el importe otorgado a la resolución)"]
["Importe de la aportación y/o cofinanciación de la organización",{"$f":"+B12-B13","v":0},null,null,null,null,"Importe de la aportación y/o cofinanciación de la organización",{"$f":"H12-H13","v":0}]
["% del importe solicitado respecto al total del proyecto subvencionable (máximo 80%*)",{"$f":"IF(B13>0,B13/B12,\"\")","v":""},null,null,"* La cuantía de la subvención otorgada no superará el 80% del gasto total del proyecto a subvencionar.",null,"% del importe solicitado respecto al total del proyecto subvencionable (máximo 80%*)\n(debe ser igual o inferior respecto al % de la solicitud inicial)",{"$f":"IF(H13>0,H13/H12,\"\")","v":""},null,null,{"$f":"IF(H15=\"\",\"\",IF(H15>0.8,\"La quantía de la subvención otorgada no puede superar el 80% del gasto total del proyecto.\",IF(H15>B15,\"Debe ser igual o inferior al % de la propuesta inicial\",\"\")))","v":""}]
[]
["PREVISIÓN DE GASTOS DEL PROYECTO SUBVENCIONABLE INICIAL",null,null,null,null,null,"PREVISIÓN DE GASTOS DEL PROYECTO REFORMULADO",null,null,null,null,null,"DIFERENCIA REFORMULACIÓN Y PROYECTO INICIAL"]
[]
["Partidas","Importe imputable a la subvención municipal","% subvención / total","Importe de la aportación y/o atribuciones de la organización","Importe total del proyecto",null,"Partidas","Importe imputable a la subvención municipal","% subvención / total","Importe de la aportación y/o atribuciones de la organización","Importe total del proyecto",null,"Importe imputable a la subvención municipal","Importe de la aportación y/o atribuciones de la organización","Importe total del proyecto"]
["D1. Nóminas y seguridad social IRPF (régimen general o socios/as cooperativistas en régimen de autónomos) del personal propio vinculado al proyecto subvencionable (máximo 40% importe subvención)",{"$f":"SUM(B21:B27)","v":0},{"$f":"IF(B20>0,B20/$B$13,)","v":0},{"$f":"SUM(D21:D27)","v":0},{"$f":"B20+D20","v":0},null,"D1. Nóminas y seguridad social IRPF (régimen general o socios/as cooperativistas en régimen de autónomos) del personal propio vinculado al proyecto subvencionable (máximo 40% importe subvención)",{"$f":"SUM(H21:H27)","v":0},{"$f":"IF(H20>0,H20/$H$13,)","v":0},{"$f":"SUM(J21:J27)","v":0},{"$f":"+H20+J20","v":0},null,{"$f":"B20-H20","v":0},{"$f":"D20-J20","v":0},0]
[null,null,null,null,0,null,null,null,null,null,0,null,{"$f":"B21-H21","v":0},0,0]
[null,null,null,null,0,null,null,null,null,null,0,null,0,0,0]
[null,null,null,null,0,null,null,null,null,null,0,null,0,0,0]
[null,null,null,null,0,null,null,null,null,null,0,null,0,0,0]
[null,null,null,null,{"$f":"B25+D25","v":0},null,null,null,null,null,{"$f":"+H25+J25","v":0},null,0,0,0]
["D2. Nóminas y seguridad social de estudiantes en prácticas (con un límite del 80% de su sueldo bruto correspondiente al periodo de la ejecución de la subvención) - excepto si la seguridad social está bonificada",{"$f":"SUM(B27:B31)","v":0},{"$f":"IF(B26>0,B26/$B$13,)","v":0},{"$f":"SUM(D27:D31)","v":0},0,null,"D2. Nóminas y seguridad social de estudiantes en prácticas (con un límite del 80% de su sueldo bruto correspondiente al periodo de la ejecución de la subvención) - excepto si la seguridad social está bonificada",{"$f":"SUM(H27:H31)","v":0},{"$f":"IF(H26>0,H26/$H$13,)","v":0},{"$f":"SUM(J27:J31)","v":0},0,null,{"$f":"B26-H26","v":0},{"$f":"D26-J26","v":0},{"$f":"E26-K26","v":0}]
[null,null,null,null,0,null,null,null,null,null,0,null,0,0,0]
[null,null,null,null,0,null,null,null,null,null,0,null,0,0,0]
[null,null,null,null,0,null,null,null,null,null,0,null,0,0,0]
[null,null,null,null,0,null,null,null,null,null,0,null,0,0,0]
[null,null,null,null,0,null,null,null,null,null,0,null,0,0,0]
["TOTAL DE GASTOS DEL PERSONAL",{"$f":"B20+B26","v":0},{"$f":"IF(B32>0,B32/$B$13,)","v":0},{"$f":"D20+D26","v":0},{"$f":"E20+E26","v":0},null,"TOTAL DE GASTOS DEL PERSONAL",{"$f":"H20+H26","v":0},{"$f":"IF(H32>0,H32/$H$13,)","v":0},{"$f":"J20+J26","v":0},{"$f":"K20+K26","v":0},null,{"$f":"B32-H32","v":0},{"$f":"D32-J32","v":0},0]
["D3. Trabajos realizados por profesionales y empresas externas directamente vinculadas al proyecto",{"$f":"SUM(B34:B38)","v":0},{"$f":"IF(B33>0,B33/$B$13,)","v":0},{"$f":"SUM(D34:D38)","v":0},{"$f":"B33+D33","v":0},null,"D3. Trabajos realizados por profesionales y empresas externas directamente vinculadas al proyecto",{"$f":"SUM(H34:H38)","v":0},{"$f":"IF(H33>0,H33/$H$13,)","v":0},{"$f":"SUM(J34:J38)","v":0},{"$f":"H33+J33","v":0},null,{"$f":"B33-H33","v":0},{"$f":"D33-J33","v":0},{"$f":"E33-K33","v":0}]
[null,null,null,null,0,null,null,null,null,null,0,null,{"$f":"B34-H34","v":0},0,0]
[null,null,null,null,0,null,null,null,null,null,0,null,0,0,0]
[null,null,null,null,0,null,null,null,null,null,0,null,0,0,0]
[null,null,null,null,0,null,null,null,null,null,0,null,0,0,0]
[null,null,null,null,0,null,null,null,null,null,{"$f":"+H38+J38","v":0},null,0,0,0]
["D4. Adquisición de materiales y bienes consumibles íntegramente imputables al proyecto",{"$f":"SUM(B40:B44)","v":0},{"$f":"IF(B39>0,B39/$B$13,)","v":0},{"$f":"SUM(D40:D44)","v":0},0,null,"D4. Adquisición de materiales y bienes consumibles íntegramente imputables al proyecto",{"$f":"SUM(H40:H44)","v":0},{"$f":"IF(H39>0,H39/$H$13,)","v":0},{"$f":"SUM(J40:J44)","v":0},{"$f":"H39+J39","v":0},null,{"$f":"B39-H39","v":0},{"$f":"D39-J39","v":0},{"$f":"E39-K39","v":0}]
[null,null,null,null,0,null,null,null,null,null,0,null,{"$f":"B40-H40","v":0},0,0]
[null,null,null,null,0,null,null,null,null,null,0,null,0,0,0]
[null,null,null,null,0,null,null,null,null,null,0,null,0,0,0]
[null,null,null,null,0,null,null,null,null,null,0,null,0,0,0]
[null,null,null,null,0,null,null,null,null,null,{"$f":"+H44+J44","v":0},null,0,0,0]
["D5. Transporte – mensajería imputables al proyecto",{"$f":"SUM(B46:B50)","v":0},{"$f":"IF(B45>0,B45/$B$13,)","v":0},{"$f":"SUM(D46:D50)","v":0},0,null,"D5. Transporte – mensajería imputables al proyecto",{"$f":"SUM(H46:H50)","v":0},{"$f":"IF(H45>0,H45/$H$13,)","v":0},{"$f":"SUM(J46:J50)","v":0},{"$f":"H45+J45","v":0},null,{"$f":"B45-H45","v":0},{"$f":"D45-J45","v":0},{"$f":"E45-K45","v":0}]
[null,null,null,null,0,null,null,null,null,null,0,null,{"$f":"B46-H46","v":0},0,0]
[null,null,null,null,0,null,null,null,null,null,0,null,0,0,0]
[null,null,null,null,0,null,null,null,null,null,0,null,0,0,0]
[null,null,null,null,0,null,null,null,null,null,0,null,0,0,0]
[null,null,null,null,0,null,null,null,null,null,{"$f":"+H50+J50","v":0},null,0,0,0]
["D6. Publicidad y propaganda de las actividades directamente vinculadas al proyecto",{"$f":"SUM(B52:B56)","v":0},{"$f":"IF(B51>0,B51/$B$13,)","v":0},{"$f":"SUM(D52:D56)","v":0},0,null,"D6. Publicidad y propaganda de las actividades directamente vinculadas al proyecto",{"$f":"SUM(H52:H56)","v":0},{"$f":"IF(H51>0,H51/$H$13,)","v":0},{"$f":"SUM(J52:J56)","v":0},{"$f":"H51+J51","v":0},null,{"$f":"B51-H51","v":0},{"$f":"D51-J51","v":0},{"$f":"E51-K51","v":0}]
[null,null,null,null,0,null,null,null,null,null,0,null,{"$f":"B52-H52","v":0},0,0]
[null,null,null,null,0,null,null,null,null,null,0,null,0,0,0]
[null,null,null,null,0,null,null,null,null,null,0,null,0,0,0]
[null,null,null,null,0,null,null,null,null,null,0,null,0,0,0]
[null,null,null,null,0,null,null,null,null,null,{"$f":"+H56+J56","v":0},null,0,0,0]
["D7. Alojamiento y dietas, del personal contratado y voluntario, vinculados al proyecto",{"$f":"SUM(B58:B62)","v":0},{"$f":"IF(B57>0,B57/$B$13,)","v":0},{"$f":"SUM(D58:D62)","v":0},0,null,"D7. Alojamiento y dietas, del personal contratado y voluntario, vinculados al proyecto",{"$f":"SUM(H58:H62)","v":0},{"$f":"IF(H57>0,H57/$H$13,)","v":0},{"$f":"SUM(J58:J62)","v":0},{"$f":"H57+J57","v":0},null,{"$f":"B57-H57","v":0},{"$f":"D57-J57","v":0},{"$f":"E57-K57","v":0}]
[null,null,null,null,0,null,null,null,null,null,0,null,{"$f":"B58-H58","v":0},0,0]
[null,null,null,null,0,null,null,null,null,null,0,null,0,0,0]
[null,null,null,null,0,null,null,null,null,null,0,null,0,0,0]
[null,null,null,null,0,null,null,null,null,null,0,null,0,0,0]
[null,null,null,null,0,null,null,null,null,null,{"$f":"+H62+J62","v":0},null,0,0,0]
["D8. Ayudas al transporte para los/las participantes de los proyectos en caso de que sea necesario de manera justificada",{"$f":"SUM(B64:B68)","v":0},{"$f":"IF(B63>0,B63/$B$13,)","v":0},{"$f":"SUM(D64:D68)","v":0},0,null,"D8. Ayudas al transporte para los/las participantes de los proyectos en caso de que sea necesario de manera justificada",{"$f":"SUM(H64:H68)","v":0},{"$f":"IF(H63>0,H63/$H$13,)","v":0},{"$f":"SUM(J64:J68)","v":0},{"$f":"H63+J63","v":0},null,{"$f":"B63-H63","v":0},{"$f":"D63-J63","v":0},{"$f":"E63-K63","v":0}]
[null,null,null,null,0,null,null,null,null,null,0,null,{"$f":"B64-H64","v":0},0,0]
[null,null,null,null,0,null,null,null,null,null,0,null,0,0,0]
[null,null,null,null,0,null,null,null,null,null,0,null,0,0,0]
[null,null,null,null,0,null,null,null,null,null,0,null,0,0,0]
[null,null,null,null,0,null,null,null,null,null,{"$f":"+H68+J68","v":0},null,0,0,0]
["D9. Viajes y desplazamientos imputables a las actividades del proyecto (con un límite del 7% del importe de la subvención)",{"$f":"SUM(B70:B74)","v":0},{"$f":"IF(B69>0,B69/$B$13,)","v":0},{"$f":"SUM(D70:D74)","v":0},{"$f":"B69+D69","v":0},null,"D9. Viajes y desplazamientos imputables a las actividades del proyecto (con un límite del 7% del importe de la subvención)",{"$f":"SUM(H70:H74)","v":0},{"$f":"IF(H69>0,H69/$H$13,)","v":0},{"$f":"SUM(J70:J74)","v":0},{"$f":"H69+J69","v":0},null,{"$f":"B69-H69","v":0},{"$f":"D69-J69","v":0},{"$f":"E69-K69","v":0}]
[null,null,null,null,0,null,null,null,null,null,0,null,{"$f":"B70-H70","v":0},0,0]
[null,null,null,null,0,null,null,null,null,null,0,null,0,0,0]
[null,null,null,null,0,null,null,null,null,null,0,null,0,0,0]
[null,null,null,null,0,null,null,null,null,null,0,null,0,0,0]
[null,null,null,null,0,null,null,null,null,null,{"$f":"+H74+J74","v":0},null,0,0,0]
["D10. Tributos, cuando sean abonados directamente por la persona jurídica beneficiaria",{"$f":"SUM(B76:B80)","v":0},{"$f":"IF(B75>0,B75/$B$13,)","v":0},{"$f":"SUM(D76:D80)","v":0},0,null,"D10. Tributos, cuando sean abonados directamente por la persona jurídica beneficiaria",{"$f":"SUM(H76:H80)","v":0},{"$f":"IF(H75>0,H75/$H$13,)","v":0},{"$f":"SUM(J76:J80)","v":0},{"$f":"H75+J75","v":0},null,{"$f":"B75-H75","v":0},{"$f":"D75-J75","v":0},{"$f":"E75-K75","v":0}]
[null,null,null,null,0,null,null,null,null,null,0,null,{"$f":"B76-H76","v":0},0,0]
[null,null,null,null,0,null,null,null,null,null,0,null,0,0,0]
[null,null,null,null,0,null,null,null,null,null,0,null,0,0,0]
[null,null,null,null,0,null,null,null,null,null,0,null,0,0,0]
[null,null,null,null,0,null,null,null,null,null,{"$f":"+H80+J80","v":0},null,0,0,0]
["D11. Gastos del informe de auditoría (máximo 1.500€ subvención)",{"$f":"SUM(B82:B86)","v":0},{"$f":"IF(B81>0,B81/$B$13,)","v":0},{"$f":"SUM(D82:D86)","v":0},0,null,"D11. Gastos del informe de auditoría (máximo 1.500€ subvención)",{"$f":"SUM(H82:H86)","v":0},{"$f":"IF(H81>0,H81/$H$13,)","v":0},{"$f":"SUM(J82:J86)","v":0},{"$f":"H81+J81","v":0},null,{"$f":"B81-H81","v":0},{"$f":"D81-J81","v":0},{"$f":"E81-K81","v":0}]
[null,null,null,null,0,null,null,null,null,null,0,null,{"$f":"B82-H82","v":0},0,0]
[null,null,null,null,0,null,null,null,null,null,0,null,0,0,0]
[null,null,null,null,0,null,null,null,null,null,0,null,0,0,0]
[null,null,null,null,0,null,null,null,null,null,0,null,0,0,0]
[null,null,null,null,0,null,null,null,null,null,{"$f":"+H86+J86","v":0},null,0,0,0]
["D12. Otros gastos que de manera justificada y por la tipología del proyecto puedan imputarse directamente al proyecto",{"$f":"SUM(B88:B92)","v":0},{"$f":"IF(B87>0,B87/$B$13,)","v":0},{"$f":"SUM(D88:D92)","v":0},{"$f":"B87+D87","v":0},null,"D12. Otros gastos que de manera justificada y por la tipología del proyecto puedan imputarse directamente al proyecto",{"$f":"SUM(H88:H92)","v":0},{"$f":"IF(H87>0,H87/$H$13,)","v":0},{"$f":"SUM(J88:J92)","v":0},{"$f":"H87+J87","v":0},null,{"$f":"B87-H87","v":0},{"$f":"D87-J87","v":0},0]
[null,null,null,null,0,null,null,null,null,null,0,null,{"$f":"B88-H88","v":0},0,0]
[null,null,null,null,0,null,null,null,null,null,0,null,0,0,0]
[null,null,null,null,0,null,null,null,null,null,0,null,0,0,0]
[null,null,null,null,0,null,null,null,null,null,0,null,0,0,0]
[null,null,null,null,0,null,null,null,null,null,{"$f":"+H92+J92","v":0},null,{"$f":"B92-H92","v":0},{"$f":"D92-J92","v":0},{"$f":"E92-K92","v":0}]
["TOTAL DE OTROS GASTOS DIRECTOS",{"$f":"B33+B39+B45+B51+B57+B63+B69+B75+B81+B87","v":0},{"$f":"IF(B93>0,B93/$B$13,)","v":0},{"$f":"D33+D39+D45+D51+D57+D63+D69+D75+D81+D87","v":0},{"$f":"E33+E39+E45+E51+E57+E63+E69+E75+E81+E87","v":0},null,"TOTAL DE OTROS GASTOS DIRECTOS",{"$f":"H33+H39+H45+H51+H57+H63+H69+H75+H81+H87","v":0},{"$f":"IF(H93>0,H93/$H$13,)","v":0},{"$f":"J33+J39+J45+J51+J57+J63+J69+J75+J81+J87","v":0},{"$f":"K33+K39+K45+K51+K57+K63+K69+K75+K81+K87","v":0},null,{"$f":"B93-H93","v":0},{"$f":"D93-J93","v":0},0]
["TOTAL GASTOS DIRECTOS (aquellos que se identifican directamente con el proyecto subvencionable)",{"$f":"SUM(B32,B93)","v":0},{"$f":"IF(B94>0,B94/$B$13,)","v":0},{"$f":"SUM(D32,D93)","v":0},{"$f":"E32+E93","v":0},null,"TOTAL GASTOS DIRECTOS (aquellos que se identifican directamente con el proyecto subvencionable)",{"$f":"SUM(H32,H93)","v":0},{"$f":"IF(H94>0,H94/$H$13,)","v":0},{"$f":"SUM(J32,J93)","v":0},{"$f":"K32+K93","v":0},null,0,{"$f":"D94-J94","v":0},0]
["I1. Personal de apoyo al proyecto (nóminas y seguridad social)",{"$f":"SUM(B96:B99)","v":0},null,{"$f":"SUM(D96:D99)","v":0},{"$f":"+B95+D95","v":0},null,"I1. Personal de apoyo al proyecto (nóminas y seguridad social)",{"$f":"SUM(H96:H99)","v":0},null,{"$f":"SUM(J96:J99)","v":0},{"$f":"+H95+J95","v":0},null,0,{"$f":"D95-J95","v":0},0]
[null,null,null,null,0,null,null,null,null,null,0,null,0,0,0]
[null,null,null,null,0,null,null,null,null,null,0,null,0,0,0]
[null,null,null,null,0,null,null,null,null,null,0,null,0,0,0]
[null,null,null,null,0,null,null,null,null,null,0,null,0,0,0]
["I2. Seguros",{"$f":"SUM(B101:B104)","v":0},null,{"$f":"SUM(D101:D104)","v":0},0,null,"I2. Seguros",{"$f":"SUM(H101:H104)","v":0},null,{"$f":"SUM(J101:J104)","v":0},0,null,{"$f":"B100-H100","v":0},{"$f":"D100-J100","v":0},0]
[null,null,null,null,0,null,null,null,null,null,0,null,{"$f":"B101-H101","v":0},0,0]
[null,null,null,null,0,null,null,null,null,null,0,null,0,0,0]
[null,null,null,null,0,null,null,null,null,null,0,null,0,0,0]
[null,null,null,null,0,null,null,null,null,null,0,null,0,0,0]
["I3. Amortización",{"$f":"SUM(B106:B109)","v":0},null,{"$f":"SUM(D106:D109)","v":0},0,null,"I3. Amortización",{"$f":"SUM(H106:H109)","v":0},null,{"$f":"SUM(J106:J109)","v":0},0,null,{"$f":"B105-H105","v":0},{"$f":"D105-J105","v":0},0]
[null,null,null,null,0,null,null,null,null,null,0,null,{"$f":"B106-H106","v":0},0,0]
[null,null,null,null,0,null,null,null,null,null,0,null,0,0,0]
[null,null,null,null,0,null,null,null,null,null,0,null,0,0,0]
[null,null,null,null,0,null,null,null,null,null,0,null,0,0,0]
["I4. Alquiler de bienes inmuebles",{"$f":"SUM(B111:B114)","v":0},null,{"$f":"SUM(D111:D114)","v":0},0,null,"I4. Alquiler de bienes inmuebles",{"$f":"SUM(H111:H114)","v":0},null,{"$f":"SUM(J111:J114)","v":0},0,null,{"$f":"B110-H110","v":0},{"$f":"D110-J110","v":0},0]
[null,null,null,null,0,null,null,null,null,null,0,null,{"$f":"B111-H111","v":0},0,0]
[null,null,null,null,0,null,null,null,null,null,0,null,0,0,0]
[null,null,null,null,0,null,null,null,null,null,0,null,0,0,0]
[null,null,null,null,0,null,null,null,null,null,0,null,0,0,0]
["I5. Adquisición de materiales y bienes consumibles parcialmente imputables al proyecto",{"$f":"SUM(B116:B119)","v":0},null,{"$f":"SUM(D116:D119)","v":0},0,null,"I5. Adquisición de materiales y bienes consumibles parcialmente imputables al proyecto",{"$f":"SUM(H116:H119)","v":0},null,{"$f":"SUM(J116:J119)","v":0},0,null,{"$f":"B115-H115","v":0},{"$f":"D115-J115","v":0},0]
[null,null,null,null,0,null,null,null,null,null,0,null,{"$f":"B116-H116","v":0},0,0]
[null,null,null,null,0,null,null,null,null,null,0,null,0,0,0]
[null,null,null,null,0,null,null,null,null,null,0,null,{"$f":"B118-H118","v":0},0,0]
[null,null,null,null,0,null,null,null,null,null,0,null,0,0,0]
["I6. Mantenimiento de edificios y/o instalaciones",{"$f":"SUM(B121:B124)","v":0},null,{"$f":"SUM(D121:D124)","v":0},0,null,"I6. Mantenimiento de edificios y/o instalaciones",{"$f":"SUM(H121:H124)","v":0},null,{"$f":"SUM(J121:J124)","v":0},0,null,{"$f":"B120-H120","v":0},{"$f":"D120-J120","v":0},0]
[null,null,null,null,0,null,null,null,null,null,0,null,{"$f":"B121-H121","v":0},0,0]
[null,null,null,null,0,null,null,null,null,null,0,null,0,0,0]
[null,null,null,null,0,null,null,null,null,null,0,null,0,0,0]
[null,null,null,null,0,null,null,null,null,null,0,null,0,0,0]
["I7. Comunicaciones (teléfono, correos, conexión a internet)",{"$f":"SUM(B126:B129)","v":0},null,{"$f":"SUM(D126:D129)","v":0},0,null,"I7. Comunicaciones (teléfono, correos, conexión a internet)",{"$f":"SUM(H126:H129)","v":0},null,{"$f":"SUM(J126:J129)","v":0},0,null,{"$f":"B125-H125","v":0},{"$f":"D125-J125","v":0},0]
[null,null,null,null,0,null,null,null,null,null,0,null,{"$f":"B126-H126","v":0},0,0]
[null,null,null,null,0,null,null,null,null,null,0,null,0,0,0]
[null,null,null,null,0,null,null,null,null,null,0,null,0,0,0]
[null,null,null,null,0,null,null,null,null,null,0,null,0,0,0]
["I8. Gastos financieros",{"$f":"SUM(B131:B134)","v":0},null,{"$f":"SUM(D131:D134)","v":0},0,null,"I8. Gastos financieros",{"$f":"SUM(H131:H134)","v":0},null,{"$f":"SUM(J131:J134)","v":0},0,null,{"$f":"B130-H130","v":0},{"$f":"D130-J130","v":0},0]
[null,null,null,null,0,null,null,null,null,null,0,null,{"$f":"B131-H131","v":0},0,0]
[null,null,null,null,0,null,null,null,null,null,0,null,0,0,0]
[null,null,null,null,0,null,null,null,null,null,0,null,0,0,0]
[null,null,null,null,0,null,null,null,null,null,0,null,0,0,0]
["I9. Suministros",{"$f":"SUM(B136:B139)","v":0},null,{"$f":"SUM(D136:D139)","v":0},0,null,"I9. Suministros",{"$f":"SUM(H136:H139)","v":0},null,{"$f":"SUM(J136:J139)","v":0},0,null,{"$f":"B135-H135","v":0},{"$f":"D135-J135","v":0},0]
[null,null,null,null,0,null,null,null,null,null,0,null,{"$f":"B136-H136","v":0},0,0]
[null,null,null,null,0,null,null,null,null,null,0,null,0,0,0]
[null,null,null,null,0,null,null,null,null,null,0,null,0,0,0]
[null,null,null,null,0,null,null,null,null,null,0,null,0,0,0]
["I10. Trabajo realizado por otras empresas, parcialmente imputables al proyecto (limpieza, seguridad...)",{"$f":"SUM(B141:B144)","v":0},null,{"$f":"SUM(D141:D144)","v":0},0,null,"I10. Trabajo realizado por otras empresas, parcialmente imputables al proyecto (limpieza, seguridad...)",{"$f":"SUM(H141:H144)","v":0},null,{"$f":"SUM(J141:J144)","v":0},0,null,{"$f":"B140-H140","v":0},{"$f":"D140-J140","v":0},0]
[null,null,null,null,0,null,null,null,null,null,0,null,{"$f":"B141-H141","v":0},0,0]
[null,null,null,null,0,null,null,null,null,null,0,null,0,0,0]
[null,null,null,null,0,null,null,null,null,null,0,null,0,0,0]
[null,null,null,null,0,null,null,null,null,null,0,null,0,0,0]
["TOTAL GASTOS INDIRECTOS (se podrán asignar al proyecto subvencionable usando un porcentaje de asignación) - Máximo 10% del importe imputable a la subvención municipal",{"$f":"SUM(B95,B100,B105,B110,B115,B120,B125,B130,B135,B140)","v":0},{"$f":"IF(B145>0,B145/$B$13,)","v":0},{"$f":"SUM(D95,D100,D105,D110,D115,D120,D125,D130,D135,D140)","v":0},{"$f":"E95+E100+E105+E110+E115+E120+E125+E130+E135+E140","v":0},null,"TOTAL GASTOS INDIRECTOS (se podrán asignar al proyecto subvencionable usandoun porcentaje de asignación) - Máximo 10% del importe imputable a la subvención municipal",{"$f":"SUM(H95,H100,H105,H110,H115,H120,H125,H130,H135,H140)","v":0},{"$f":"IF(H145>0,H145/$H$13,)","v":0},{"$f":"SUM(J95,J100,J105,J110,J115,J120,J125,J130,J135,J140)","v":0},{"$f":"K95+K100+K105+K110+K115+K120+K125+K130+K135+K140","v":0},{"$f":"+IF(H145>H13*0.1,\"ALERTA: Màxim 10% import imputable a la subvenció municipal\", \" \")","v":" "},{"$f":"B145-H145","v":0},{"$f":"D145-J145","v":0},0]
["TOTAL DE GASTOS PREVISTOS",{"$f":"SUM(B94+B145)","v":0},{"$f":"IF(B146>0,B146/$B$13,)","v":0},{"$f":"SUM(D94+D145)","v":0},{"$f":"SUM(E94+E145)","v":0},null,"TOTAL DE GASTOS PREVISTOS",{"$f":"SUM(H94+H145)","v":0},{"$f":"IF(H146>0,H146/$H$13,)","v":0},{"$f":"SUM(J94+J145)","v":0},0,null,0,{"$f":"D146-J146","v":0},0]
[null,{"$f":"IF(B146>B13,\"La suma del detalle de gastos no puede ser superior al importe total de subvención municipal indicado en el recuadro.\",(IF(B146<B13,\"La suma del detalle de gastos no puede ser inferior al importe total de subvención municipal indicado en el recuadro.\",\"\")))","v":""},null,{"$f":"IF(D146>B14,\"La suma del detalle de gastos no puede ser superior al importe total de la aportación/cofinanciación indicado en el recuadro.\",(IF(D146<B14,\"La suma del detalle de gastos no puede ser inferior al importe total de la aportación/cofinanciación indicado en el recuadro.\",\"\")))","v":""},{"$f":"IF(E146>B12,\"La suma del detalle de gastos no puede ser superior al importe total del proyecto indicado en el recuadro.\",(IF(E146<B12,\"La suma del detalle de gastos no puede ser inferior al importe total del proyecto indicado en el recuadro.\",\"\")))","v":""},null,null,{"$f":"IF(H146>H13,\"La suma del detalle de gastos no puede ser superior al importe total de subvención municipal indicado en el recuadro.\",(IF(H146<H13,\"La suma del detalle de gastos no puede ser inferior al importe total de subvención municipal indicado en el recuadro.\",\"\")))","v":""},null,{"$f":"IF(J146>H14,\"La suma del detalle de gastos no puede ser superior al importe total de la aportación/cofinanciación indicado en el recuadro.\",(IF(J146<H14,\"La suma del detalle de gastos no puede ser inferior al importe total de la aportación/cofinanciación indicado en el recuadro.\",\"\")))","v":""},{"$f":"IF(K146>H12,\"La suma del detalle de gastos no puede ser superior al importe total del proyecto indicado en el recuadro.\",(IF(K146<H12,\"La suma del detalle de gastos no puede ser inferior al importe total del proyecto indicado en el recuadro.\",\"\")))","v":""}]
["Modalidad Bb: Acciones de intercooperación, para crear y/o fortalecer ecosistemas cooperativos y/o clústeres de ESS de la ciudad de Barcelona y por otras acciones de intercooperación promovidas por organizaciones y empresas de la economía social y solidaria, vinculadas en cualquiera de los casos, a la Estrategia #ESSBCN2030 y a los objetivos del PIESS 2024-2027"]
["1. La cuantía de la subvención otorgada no superará el 80% del gasto total del proyecto a subvencionar."]
["2. El importe máximo de subvención para esta modalidad Bb es 25.000€."]
["3. En el caso de que la solicitud presentada sobrepase el importe máximo, se considerará como importe solicitado el máximo de lo establecido en la convocatoria."]
["4. En esta modalidad se aceptará la imputación de gastos de personal propio y directamente vinculado al proyecto de las organizaciones participantes del acuerdo de intercooperación."]
["5. Se limita con un máximo del 40% el importe de la subvención para gastos de personal propio asignado directamente al proyecto subvencionado (régimen general o socios/as cooperativistas en régimen de autónomos-), y un 80% para nóminas y seguridad social de estudiantes en prácticas (sueldo bruto correspondiente al periodo de la ejecución de la subvención) - excepto si la seguridad social está bonificada."]
["6. En el caso de alquileres de inmuebles los gastos de alquiler se imputarán a los gastos indirectos con el límite establecido por estos gastos indirectos."]
["7. Para las subvenciones otorgadas por importe igual o superior a 20.000 € es necesario un informe de auditoría para la justificación. El importe de este informe se considera gasto subvencionable, con un límite máximo de 1.500€."]
["8. Son imputables en esta modalidad los gastos indirectos, detallados en el apartado 13.3. de las bases reguladoras; con un máximo del 10% del importe de la subvención.\nEl carácter subvencionable del gasto de amortización estará sujeto a las siguientes condiciones:\n> Que las subvenciones no hayan contribuido a la compra de los bienes.\n> Que la amortización se calcule de conformidad con las normas de contabilidad generalmente aceptadas.\n> Que el coste se refiera al periodo subvencionable."]
["9. No serán elegibles facturas de empresas emitidas entre las organizaciones participantes del acuerdo de colaboración."]
["10. En ningún caso se considerarán gastos subvencionables:\n> Los impuestos indirectos cuando sean susceptibles de recuperación o compensación.\n> Los gastos de inversión, incluidas las adquisiciones de bienes muebles.\n> Los gastos realizados con fecha anterior al inicio del proyecto y fecha posterior a la finalización del proyecto.\n> Otros gastos que se indiquen en la convocatoria."]
["11. La retribución de las personas contratadas en el marco del proyecto subvencionado no puede ser inferior al Salario Mínimo Interprofesional (SMI), ni a la estipulada en el correspondiente convenio o marco normativo de referencia (punto 7 de las bases 2025: requisitos de los proyectos)."]
["12. Los materiales producidos de difusión, estudios, informes o materiales didácticos utilizados, etc. en el caso de tratarse de gasto elegible de la subvención, deberán tener licencia Creative Commons -Compartir Igual- (share a like) y no podrá tener la condición –Sin Obras Derivadas- (no derivate Works)."]
["13. Los proyectos subvencionados deben fomentar actividades de interés público o social, las cuales deben ser gratuitas para las personas participantes o en ningún caso el precio debe suponer un obstáculo para su participación, buscando otras formas de acceso para personas con dificultades económicas. En el caso de que haya algún tipo de lucro, tendrá que revertir en las propias actividades subvencionadas."]
["14. El Ayuntamiento de Barcelona y sus entidades municipales en ningún caso subvencionarán el mismo proyecto, ejecutado durante el mismo periodo, por ningún otro procedimiento de concesión que no sea el regulado por las bases reguladoras."]
["15. El/la beneficiario/a no podrá alterar en ningún caso el destino de las subvenciones concedidas."]
["16. La organización designada como representante de la agrupación será plenamente responsable del proyecto ante el Ayuntamiento respecto al cumplimiento de las obligaciones establecidas en las bases reguladoras, sin perjuicio de la responsabilidad de las demás organizaciones socias de la agrupación, siéndole de aplicación los requisitos previstos en el punto 6.1 de las bases reguladoras."]
["17. En ningún caso podrán formar parte de la agrupación las organizaciones que hayan recibido otras subvenciones para la ejecución del mismo proyecto de otras administraciones públicas."]
["18. El programa de prácticas del alumno/a debe ser de una duración mínima de 400 horas o superior."]
["19. Solo puede presentarse una solicitud por un puesto de prácticas por organización solicitante."]
["20. Habrá que remunerar al alumno/a en prácticas universitarias (curriculares o extracurriculares) con un coste bruto hora mínimo de 6€/hora o superior."]
["21. Habrá que remunerar al alumno/a según la modalidad de FP dual escogida como mínimo de acuerdo con la normativa específica que establece el Departamento de Educación de la Generalidad de Cataluña o superior."]
["22. Solo se aceptarán, como gastos subvencionables vinculados a la participación en reuniones de trabajo y formaciones, la imputación de costes de personal y gastos de traslados sólo con transportes públicos imputables a las actividades del proyecto subvencionable (con un límite del 7% de la subvención) y no otras compensaciones dinerarias o dietas"]
["23. No se subvencionarán propuestas para que el personal vinculado a la organización beneficiaria haga formaciones internamente o a terceros. Sólo se podrán subvencionar propuestas para recibir formaciones de personal externo especializado en la materia de formación."]
["24. En el caso de presentar tickets, su importe no podrá superar el 10% de la subvención e irán acompañados de una declaración responsable del representante legal de la persona jurídica o de la agrupación de personas jurídicas que indicará en qué concepto se imputa este gasto."]
["25. En caso de realizarse gastos superiores a los importes establecidos por los contratos menores de servicios, suministros y obras de la Ley de Contratos del Sector Público 9/2017, se deberán incorporar tres presupuestos solicitados y argumentar el motivo de la adjudicación en el caso de no ser la propuesta más ventajosa económicamente."]
["26. No se pueden imputar en ningún caso gastos de inversión, correspondientes a partidas del inmovilizado, con el dinero de la subvención otorgada en esta convocatoria específica. Sí se pueden imputar a la parte de contribución, siempre que sean gastos dentro del periodo ejecutivo del proyecto subvencionado y acreditables tal como se describe en las bases reguladoras vigentes."]

{"sheet":"Resumen Presupuesto","index":2,"n_rows":27,"n_cols":12,"rows_kept":27,"cut":false,"hidden":false,"merged":[[6,10,7,10],[9,7,10,7],[9,8,10,8],[9,9,10,9],[9,10,10,10],[10,0,11,0],[21,0,22,1],[21,2,22,3],[21,4,22,5],[26,7,26,10],[12,7,13,7],[12,8,13,8],[12,9,13,9],[12,10,13,10],[21,7,21,8],[1,2,2,8],[3,0,3,9],[5,0,5,1],[6,0,7,1],[6,2,7,3],[6,4,7,5],[6,7,7,8],[6,9,7,9]]}
[]
[null,null,"Resumen presupuesto Bb"]
[]
["Subvenciones del Ayuntamiento de Barcelona para el fortalecimiento de la Economía Social y Solidaria y por la intercooperación en la Estrategia #ESSBCN2030 - FORTALECEMOS LA ESS 2025",null,null,null,null,null,null,null,null,null,"MODALIDAD Bb"]
[]
["GASTOS PREVISTOS",null,"SOLICITUD INICIAL","REFORMULACIÓN","SOLICITUD INICIAL","REFORMULACIÓN",null,"INGRESSOS PREVISTOS",null,"SOLICITUD INICIAL","REFORMULACIÓN"]
["Gastos directos \n(aquellas que se identifican directamente con el proyecto)",null,"Coste total",null,"Subvención",null,null,"Ingresos previstos",null,"Previsión inicial ingreso total","Previsión reformulada ingreso total"]
[]
["Bb","D1. Nóminas y seguridad social IRPF (régimen general o socios/as cooperativistas en régimen de autónomos) del personal propio vinculado al proyecto subvencionable (máximo 40% importe subvención)",{"$f":"+'Reformulación Presupuesto Bb'!E20","v":0},{"$f":"+'Reformulación Presupuesto Bb'!K20","v":0},{"$f":"+'Reformulación Presupuesto Bb'!B20","v":0},{"$f":"+'Reformulación Presupuesto Bb'!H20","v":0},null,"A.","Subvención municipal (importe solicitado a la instancia/otorgado)",{"$f":"'Reformulación Presupuesto Bb'!B13","v":0},{"$f":"'Reformulación Presupuesto Bb'!H13","v":0}]
[null,"D2. Nóminas y seguridad social de estudiantes en prácticas (con un límite del 80% de su sueldo bruto correspondiente al periodo de la ejecución de la subvención) - excepto si la seguridad social está bonificada",{"$f":"+'Reformulación Presupuesto Bb'!E26","v":0},{"$f":"+'Reformulación Presupuesto Bb'!K26","v":0},{"$f":"+'Reformulación Presupuesto Bb'!B26","v":0},{"$f":"+'Reformulación Presupuesto Bb'!H26","v":0},null,"B.","Subvenciones de otras administraciones"]
[null,"D3. Trabajos realizados por profesionales y empresas externas directamente vinculadas al proyecto",{"$f":"+'Reformulación Presupuesto Bb'!E33","v":0},{"$f":"+'Reformulación Presupuesto Bb'!K33","v":0},{"$f":"+'Reformulación Presupuesto Bb'!B33","v":0},{"$f":"+'Reformulación Presupuesto Bb'!H33","v":0},null,null,null,null,null,{"$f":"+IF(K11<0,\"No s'admeten valors negatius\",\"\")","v":""}]
[null,"D4. Adquisición de materiales y bienes consumibles íntegramente imputables al proyecto",{"$f":"+'Reformulación Presupuesto Bb'!E39","v":0},{"$f":"+'Reformulación Presupuesto Bb'!K39","v":0},{"$f":"+'Reformulación Presupuesto Bb'!B39","v":0},{"$f":"+'Reformulación Presupuesto Bb'!H39","v":0},null,"C.","Subvenciones de entidades privadas",null,null,""]
[null,"D5. Transporte – mensajería imputables al proyecto",{"$f":"+'Reformulación Presupuesto Bb'!E45","v":0},{"$f":"+'Reformulación Presupuesto Bb'!K45","v":0},{"$f":"+'Reformulación Presupuesto Bb'!B45","v":0},{"$f":"+'Reformulación Presupuesto Bb'!H45","v":0},null,"D.","Recursos propios de la organización aplicados al proyecto"]
[null,"D6. Publicidad y propaganda de las actividades directamente vinculadas al proyecto",{"$f":"+'Reformulación Presupuesto Bb'!E51","v":0},{"$f":"+'Reformulación Presupuesto Bb'!K51","v":0},{"$f":"+'Reformulación Presupuesto Bb'!B51","v":0},{"$f":"+'Reformulación Presupuesto Bb'!H51","v":0}]
[null,"D7. Alojamiento y dietas, del personal contratado y voluntario, vinculados al proyecto",{"$f":"+'Reformulación Presupuesto Bb'!E57","v":0},{"$f":"+'Reformulación Presupuesto Bb'!K57","v":0},{"$f":"+'Reformulación Presupuesto Bb'!B57","v":0},{"$f":"+'Reformulación Presupuesto Bb'!H57","v":0},null,"E.","Taquillaje"]
[null,"D8. Ayudas al transporte para los/las participantes de los proyectos en caso de que sea necesario de manera justificada",{"$f":"+'Reformulación Presupuesto Bb'!E63","v":0},{"$f":"+'Reformulación Presupuesto Bb'!K63","v":0},{"$f":"+'Reformulación Presupuesto Bb'!B63","v":0},{"$f":"+'Reformulación Presupuesto Bb'!H63","v":0},null,"F.","Cuotas de inscripción"]
[null,"D9. Viajes y desplazamientos imputables a las actividades del proyecto (con un límite del 7% del importe de la subvención)",{"$f":"+'Reformulación Presupuesto Bb'!E69","v":0},{"$f":"+'Reformulación Presupuesto Bb'!K69","v":0},{"$f":"+'Reformulación Presupuesto Bb'!B69","v":0},{"$f":"+'Reformulación Presupuesto Bb'!H69","v":0},null,"G.","Venta de Productos"]
[null,"D10. Tributos, cuando sean abonados directamente por la persona jurídica o física beneficiaria",{"$f":"+'Reformulación Presupuesto Bb'!E75","v":0},{"$f":"+'Reformulación Presupuesto Bb'!K75","v":0},{"$f":"+'Reformulación Presupuesto Bb'!B75","v":0},{"$f":"+'Reformulación Presupuesto Bb'!H75","v":0},null,"H","Publicidad y/o Esponsorización"]
[null,"D11. Gastos del informe de auditoría (máximo 1.500€ subvención)",{"$f":"+'Reformulación Presupuesto Bb'!E81","v":0},{"$f":"+'Reformulación Presupuesto Bb'!K81","v":0},{"$f":"+'Reformulación Presupuesto Bb'!B81","v":0},{"$f":"+'Reformulación Presupuesto Bb'!H81","v":0},null,"I.","Otros ingresos"]
[null,"D12. Otros gastos que de manera justificada y por la tipología del proyecto puedan imputarse directamente al proyecto",{"$f":"+'Reformulación Presupuesto Bb'!E87","v":0},{"$f":"+'Reformulación Presupuesto Bb'!K87","v":0},{"$f":"+'Reformulación Presupuesto Bb'!B87","v":0},{"$f":"+'Reformulación Presupuesto Bb'!H87","v":0},null,null,"Total Ingresos",{"$f":"SUM(J9:J19)","v":0},0]
[null,"Total Gastos Directos",{"$f":"SUM(C9:C20)","v":0},{"$f":"SUM(D9:D20)","v":0},{"$f":"SUM(E9:E20)","v":0},{"$f":"SUM(F9:F20)","v":0}]
["Gastos indirectos (máximo 10% subvención)",null,"Indirectos inicial total",null,"Indirectos inicial subvenció",null,null,"Ingresos menos gastos",null,{"$f":"+J20-C25","v":0},{"$f":"+K20-D25","v":0}]
[]
[null,"Total Gastos Indirectos",{"$f":"'Reformulación Presupuesto Bb'!E145","v":0},{"$f":"'Reformulación Presupuesto Bb'!K145","v":0},{"$f":"'Reformulación Presupuesto Bb'!B145","v":0},{"$f":"'Reformulación Presupuesto Bb'!H145","v":0},null,null,null,"% subvencionado inicialmente",{"$f":"IF(J9>0,J9/C25,\"\")","v":""}]
[null,"Total Gastos",{"$f":"+C21+C24","v":0},0,0,0]
[null,null,null,null,null,null,null,null,null,"% subvencionado después de reformular",{"$f":"IF(K9>9,K9/D25,\"\")","v":""},"*"]
[null,null,null,null,null,null,null,"*Este porcentaje debe ser igual o menor al porcentaje subvencionado inicialmente."]